[Event "Chessity Nationale Pupillendag 2018 - Groep H"]
[Site "Meppel, Netherlands"]
[Date "2018.06.23"]
[Round "1.1"]
[White "Formanoy, David"]
[Black "Terlouw, Wouter"]
[Result "0-1"]
[TimeControl "15 min + 10 sec"]
[WhiteElo "235"]
[BlackElo "878"]

1. e4 {[%clk 00:15:20]} {[%emt 00:01:18]} c5 {[%clk 00:15:18]} {[%emt
00:00:02]} 2. Bc4 {[%emt 00:00:03]} Nc6 {[%clk 00:15:27]} 3. Qf3 {[%clk
00:15:34]} {[%emt 00:00:03]} e6 {[%clk 00:15:33]} {[%emt 00:00:05]} 4. Bb3
{[%clk 00:15:41]} {[%emt 00:00:03]} g6 {[%clk 00:15:40]} {[%emt 00:00:03]} 5.
Qc3 {[%clk 00:15:47]} {[%emt 00:00:04]} Nf6 {[%clk 00:15:42]} {[%emt 00:00:08]}
6. d3 {[%clk 00:15:52]} {[%emt 00:00:05]} Bg7 {[%clk 00:15:50]} {[%emt
00:00:02]} 7. Nf3 {[%clk 00:15:58]} {[%emt 00:00:03]} O-O {[%clk 00:15:58]}
{[%emt 00:00:03]} 8. O-O {[%clk 00:16:06]} {[%emt 00:00:01]} Nxe4 {[%clk
00:15:53]} {[%emt 00:00:15]} 9. dxe4 {[%clk 00:16:13]} {[%emt 00:00:03]} Bxc3
{[%clk 00:16:00]} {[%emt 00:00:03]} 10. bxc3 {[%clk 00:16:20]} {[%emt
00:00:03]} d6 {[%clk 00:15:56]} {[%emt 00:00:15]} 11. g3 {[%clk 00:16:24]}
{[%emt 00:00:05]} Qf6 {[%clk 00:15:59]} {[%emt 00:00:08]} 12. Rd1 {[%clk
00:16:26]} {[%emt 00:00:07]} Qxf3 {[%clk 00:16:03]} {[%emt 00:00:05]} 13. Rxd6
{[%clk 00:16:30]} {[%emt 00:00:06]} e5 {[%clk 00:16:07]} {[%emt 00:00:07]} 14.
Nd2 {[%clk 00:16:24]} {[%emt 00:00:15]} Qxc3 {[%clk 00:15:48]} {[%emt
00:00:30]} 15. Rb1 {[%clk 00:16:28]} {[%emt 00:00:07]} Bg4 {[%clk 00:15:48]}
{[%emt 00:00:10]} 16. Rd7 {[%clk 00:16:31]} {[%emt 00:00:06]} Bxd7 {[%clk
00:15:56]} {[%emt 00:00:03]} 17. Rb2 {[%clk 00:16:23]} {[%emt 00:00:18]} Bg4
{[%clk 00:15:50]} {[%emt 00:00:16]} 18. Nb1 {[%clk 00:16:27]} {[%emt 00:00:06]}
Qf3 {[%clk 00:15:56]} {[%emt 00:00:03]} 19. c3 {[%emt 00:00:09]} Bh3 {[%emt
00:00:01]} 20. Nd2 {[%clk 00:16:06]} {[%emt 00:00:32]} Qg2+ {[%clk 00:16:09]}
{[%emt 00:00:02]} 0-1

[Event "Chessity Nationale Pupillendag 2018 - Groep H"]
[Site "Meppel, Netherlands"]
[Date "2018.06.23"]
[Round "1.2"]
[White "Geldof, Max"]
[Black "Meskers, Babet"]
[Result "1-0"]
[TimeControl "15 min + 10 sec"]
[WhiteElo "642"]
[BlackElo "196"]

1. e4 {[%clk 00:15:10]} e5 {[%clk 00:15:10]} 2. Nf3 {[%clk 00:15:10]} Nc6
{[%clk 00:15:10]} 3. Nc3 {[%clk 00:15:10]} Nf6 {[%clk 00:15:10]} 4. Bc4 {[%clk
00:15:10]} Na5 {[%clk 00:15:10]} 5. b3 {[%clk 00:15:10]} Nc6 {[%clk 00:15:41]}
{[%emt 00:06:51]} 6. d3 {[%emt 00:00:55]} Bc5 {[%clk 00:15:56]} 7. O-O {[%clk
00:15:30]} {[%emt 00:00:04]} O-O {[%clk 00:16:02]} {[%emt 00:00:07]} 8. Bg5
{[%clk 00:15:33]} {[%emt 00:00:06]} h6 {[%clk 00:16:05]} {[%emt 00:00:07]} 9.
Bh4 {[%clk 00:15:37]} {[%emt 00:00:02]} g5 {[%clk 00:16:13]} {[%emt 00:00:02]}
10. Bg3 {[%clk 00:15:45]} {[%emt 00:00:02]} Ng4 {[%clk 00:16:07]} {[%emt
00:00:40]} 11. h3 {[%clk 00:15:41]} Nf6 {[%clk 00:16:06]} 12. Nxe5 {[%clk
00:15:45]} Nxe5 {[%clk 00:16:11]} 13. Bxe5 {[%clk 00:16:08]} {[%emt 00:00:38]}
Nh7 {[%clk 00:16:32]} 14. d4 {[%clk 00:15:59]} Be7 {[%clk 00:16:35]} 15. Qd3 d6
{[%clk 00:16:38]} {[%emt 00:00:56]} 16. Bg3 {[%clk 00:15:59]} b5 {[%clk
00:16:30]} 17. Bxb5 {[%clk 00:15:53]} c6 {[%emt 00:00:41]} 18. Bh2 {[%clk
00:15:57]} {[%emt 00:00:03]} Qc7 19. Bxc6 {[%clk 00:16:03]} Ba6 20. Bxa8 {[%clk
00:16:08]} Qxc3 21. Qxa6 {[%clk 00:16:13]} 1-0

[Event "Chessity Nationale Pupillendag 2018 - Groep H"]
[Site "Meppel, Netherlands"]
[Date "2018.06.23"]
[Round "2.1"]
[White "Terlouw, Wouter"]
[Black "Vermeij, Djurre"]
[Result "1-0"]
[TimeControl "15 min + 10 sec"]
[WhiteElo "878"]
[BlackElo "349"]

1. d4 {[%clk 00:15:19]} d5 {[%clk 00:15:18]} {[%emt 00:00:02]} 2. c4 {[%clk
00:15:28]} dxc4 {[%clk 00:15:25]} {[%emt 00:00:03]} 3. e3 {[%clk 00:15:37]}
{[%emt 00:00:01]} Bf5 {[%clk 00:15:32]} {[%emt 00:00:04]} 4. Bxc4 {[%clk
00:15:43]} {[%emt 00:00:03]} b5 {[%emt 00:00:08]} 5. Bxb5+ {[%clk 00:15:44]}
{[%emt 00:00:05]} Bd7 {[%clk 00:15:43]} {[%emt 00:00:06]} 6. Bc4 {[%clk
00:15:49]} {[%emt 00:00:05]} Nc6 {[%clk 00:15:48]} {[%emt 00:00:04]} 7. Nc3
{[%clk 00:15:58]} {[%emt 00:00:02]} e6 {[%clk 00:15:52]} {[%emt 00:00:06]} 8.
Nf3 {[%clk 00:16:00]} {[%emt 00:00:08]} Bb4 {[%clk 00:15:53]} {[%emt 00:00:07]}
9. O-O {[%clk 00:16:05]} {[%emt 00:00:06]} Rb8 {[%clk 00:15:55]} {[%emt
00:00:07]} 10. Bd2 {[%clk 00:16:06]} {[%emt 00:00:10]} Na5 {[%clk 00:15:55]}
{[%emt 00:00:07]} 11. Bb3 {[%clk 00:15:45]} {[%emt 00:00:35]} Rb6 {[%clk
00:15:51]} {[%emt 00:00:11]} 12. Na4 {[%clk 00:15:45]} {[%emt 00:00:12]} Rd6
{[%clk 00:15:46]} {[%emt 00:00:12]} 13. Bxb4 {[%clk 00:15:53]} {[%emt
00:00:05]} Rc6 {[%clk 00:15:40]} {[%emt 00:00:07]} 14. Bxa5 {[%clk 00:16:01]}
{[%emt 00:00:12]} Ra6 {[%clk 00:15:45]} {[%emt 00:00:04]} 15. Bc3 {[%clk
00:15:52]} {[%emt 00:00:19]} Bxa4 {[%clk 00:15:44]} {[%emt 00:00:11]} 16. Bxa4+
{[%clk 00:15:59]} {[%emt 00:00:03]} Ke7 {[%clk 00:15:48]} {[%emt 00:00:17]} 17.
Qb3 {[%clk 00:16:08]} {[%emt 00:00:10]} Rb6 {[%clk 00:15:46]} {[%emt 00:00:08]}
18. Bb4+ {[%clk 00:16:16]} {[%emt 00:00:06]} Kf6 {[%clk 00:15:48]} {[%emt
00:00:07]} 19. Qc3 {[%clk 00:16:06]} {[%emt 00:00:22]} Ne7 {[%clk 00:15:45]}
{[%emt 00:00:13]} 20. d5+ {[%clk 00:16:10]} {[%emt 00:00:06]} Kf5 {[%clk
00:15:34]} {[%emt 00:00:19]} 21. Qe5+ {[%clk 00:16:09]} {[%emt 00:00:11]} Kg6
{[%clk 00:15:28]} {[%emt 00:00:11]} 22. Qg5+ {[%clk 00:16:11]} {[%emt
00:00:15]} 1-0

[Event "Chessity Nationale Pupillendag 2018 - Groep H"]
[Site "Meppel, Netherlands"]
[Date "2018.06.23"]
[Round "2.2"]
[White "Bronkhorst, Boaz"]
[Black "Geldof, Max"]
[Result "0-1"]
[TimeControl "15 min + 10 sec"]
[WhiteElo "324"]
[BlackElo "642"]

1. d4 {[%clk 00:15:10]} d5 {[%clk 00:15:10]} 2. Nf3 {[%clk 00:15:10]} Nf6
{[%clk 00:15:10]} 3. Qd3 {[%clk 00:15:10]} Nc6 {[%clk 00:15:10]} 4. Bg5 {[%clk
00:15:10]} g6 {[%clk 00:15:10]} 5. Bxf6 {[%clk 00:15:10]} exf6 {[%clk
00:15:10]} 6. Nc3 {[%clk 00:15:10]} Bf5 {[%clk 00:15:31]} {[%emt 00:51:07]} 7.
Qd2 {[%emt 00:00:13]} Bb4 {[%clk 00:15:30]} {[%emt 00:00:03]} 8. Qe3+ {[%emt
00:00:06]} Ne7 {[%clk 00:15:33]} {[%emt 00:00:03]} 9. a3 {[%emt 00:00:03]} Bd6
{[%clk 00:15:39]} {[%emt 00:00:02]} 10. h3 {[%clk 00:16:37]} {[%emt 00:00:02]}
g5 {[%emt 00:00:06]} 11. g4 {[%emt 00:00:01]} Bf4 {[%clk 00:15:48]} {[%emt
00:00:04]} 12. Qd2 {[%clk 00:16:54]} {[%emt 00:00:02]} Bxd2+ {[%clk 00:15:55]}
{[%emt 00:00:04]} 13. Nxd2 {[%clk 00:17:02]} {[%emt 00:00:02]} Bxc2 {[%clk
00:16:00]} {[%emt 00:00:05]} 14. h4 {[%clk 00:17:10]} {[%emt 00:00:02]} gxh4
{[%emt 00:00:02]} 15. Rxh4 {[%emt 00:00:02]} f5 {[%clk 00:16:10]} {[%emt
00:00:05]} 16. gxf5 {[%clk 00:17:29]} {[%emt 00:00:02]} Nxf5 {[%clk 00:16:18]}
{[%emt 00:00:03]} 17. Rg4 {[%clk 00:17:37]} {[%emt 00:00:01]} Nh6 {[%clk
00:16:18]} {[%emt 00:00:10]} 18. Rf4 {[%clk 00:17:43]} {[%emt 00:00:02]} Qd6
{[%clk 00:16:22]} {[%emt 00:00:08]} 19. Rf3 {[%clk 00:17:52]} {[%emt 00:00:01]}
O-O-O {[%emt 00:00:15]} 20. Bh3+ {[%clk 00:17:51]} {[%emt 00:00:07]} Kb8 {[%clk
00:16:26]} {[%emt 00:00:04]} 21. Re3 {[%clk 00:17:59]} {[%emt 00:00:03]} Rhe8
{[%clk 00:16:26]} {[%emt 00:00:09]} 22. Rf3 {[%clk 00:18:06]} {[%emt 00:00:03]}
Be4 {[%clk 00:16:27]} {[%emt 00:00:10]} 23. Rg3 {[%clk 00:18:10]} {[%emt
00:00:05]} f5 {[%clk 00:16:17]} {[%emt 00:00:21]} 24. f3 {[%clk 00:18:18]}
{[%emt 00:00:02]} f4 {[%clk 00:16:24]} {[%emt 00:00:02]} 25. Rg4 {[%clk
00:18:25]} {[%emt 00:00:04]} Bf5 {[%clk 00:16:30]} {[%emt 00:00:03]} 26. Rh4
{[%clk 00:18:34]} {[%emt 00:00:02]} Bxh3 {[%clk 00:16:35]} {[%emt 00:00:04]} 27.
Rxh3 {[%clk 00:18:43]} {[%emt 00:00:02]} Qd7 {[%clk 00:16:38]} {[%emt
00:00:07]} 28. Nb3 {[%clk 00:18:51]} {[%emt 00:00:02]} Qxh3 {[%clk 00:16:44]}
{[%emt 00:00:03]} 29. Kd2 {[%clk 00:18:59]} {[%emt 00:00:02]} b6 {[%clk
00:16:42]} {[%emt 00:00:12]} 30. Rd1 {[%emt 00:00:07]} a5 {[%clk 00:16:49]} 31.
a4 {[%clk 00:19:13]} {[%emt 00:00:03]} Rd6 {[%clk 00:16:52]} {[%emt 00:00:06]}
32. Nb5 {[%clk 00:19:22]} {[%emt 00:00:02]} Rde6 {[%clk 00:16:58]} {[%emt
00:00:02]} 33. Na1 {[%clk 00:19:30]} {[%emt 00:00:04]} Rxe2+ {[%clk 00:17:04]}
{[%emt 00:00:03]} 34. Kc1 {[%clk 00:19:37]} {[%emt 00:00:03]} Re1 {[%clk
00:17:08]} {[%emt 00:00:06]} 35. Kc2 {[%clk 00:19:43]} {[%emt 00:00:04]} Qg2+
{[%emt 00:00:09]} 36. Kc1 {[%clk 00:19:49]} Rxd1+ {[%clk 00:17:20]} {[%emt
00:00:04]} 37. Kxd1 {[%clk 00:19:57]} {[%emt 00:00:01]} Qe2+ {[%clk 00:17:25]}
{[%emt 00:00:03]} 38. Kc1 {[%clk 00:20:06]} {[%emt 00:00:03]} Qe1+ {[%clk
00:17:33]} {[%emt 00:00:02]} 39. Kc2 {[%clk 00:20:15]} Re2+ {[%clk 00:17:40]}
{[%emt 00:00:04]} 40. Kb3 {[%emt 00:00:09]} Qb4+ {[%clk 00:17:34]} {[%emt
00:00:06]} 41. Ka2 {[%clk 00:20:33]} {[%emt 00:00:03]} Qxb2# {[%clk 00:17:29]}
{[%emt 00:00:04]} 0-1

[Event "Chessity Nationale Pupillendag 2018 - Groep H"]
[Site "Meppel, Netherlands"]
[Date "2018.06.23"]
[Round "3.1"]
[White "Huang, Luna"]
[Black "Terlouw, Wouter"]
[Result "1/2-1/2"]
[TimeControl "15 min + 10 sec"]
[WhiteElo "488"]
[BlackElo "878"]

1. e4 {[%clk 00:15:19]} {[%emt 00:00:01]} c5 {[%clk 00:15:19]} {[%emt
00:00:01]} 2. Nf3 {[%clk 00:15:26]} {[%emt 00:00:03]} Nc6 {[%clk 00:15:27]}
{[%emt 00:00:02]} 3. Bc4 {[%clk 00:15:29]} {[%emt 00:00:06]} g6 {[%clk
00:15:36]} {[%emt 00:00:02]} 4. c3 {[%clk 00:15:32]} {[%emt 00:00:07]} Bg7
{[%clk 00:15:43]} {[%emt 00:00:02]} 5. d3 {[%clk 00:15:31]} {[%emt 00:00:12]}
e6 {[%clk 00:15:50]} {[%emt 00:00:03]} 6. Nbd2 {[%clk 00:15:29]} {[%emt
00:00:11]} Nge7 {[%clk 00:15:58]} {[%emt 00:00:02]} 7. h3 {[%clk 00:15:13]}
{[%emt 00:00:27]} O-O {[%clk 00:16:01]} {[%emt 00:00:07]} 8. O-O {[%emt
00:00:10]} e5 {[%emt 00:00:01]} 9. Re1 {[%clk 00:15:06]} {[%emt 00:00:06]} d6
{[%clk 00:16:04]} {[%emt 00:00:08]} 10. Nf1 {[%clk 00:14:56]} {[%emt 00:00:19]}
Be6 {[%clk 00:15:43]} {[%emt 00:00:31]} 11. Bxe6 {[%emt 00:00:17]} fxe6 {[%clk
00:15:51]} {[%emt 00:00:01]} 12. Ng3 {[%clk 00:14:53]} {[%emt 00:00:06]} d5
{[%clk 00:15:46]} {[%emt 00:00:16]} 13. exd5 {[%clk 00:14:25]} {[%emt
00:00:38]} exd5 {[%clk 00:15:49]} {[%emt 00:00:06]} 14. Bg5 {[%clk 00:13:39]}
{[%emt 00:00:56]} Qd7 {[%clk 00:15:36]} {[%emt 00:00:24]} 15. Qe2 {[%clk
00:13:31]} {[%emt 00:00:17]} Nc8 {[%clk 00:15:14]} {[%emt 00:00:32]} 16. Rad1
{[%clk 00:13:06]} {[%emt 00:00:32]} Nb6 {[%clk 00:15:19]} {[%emt 00:00:09]} 17.
b3 {[%clk 00:12:48]} {[%emt 00:00:28]} Rfe8 {[%clk 00:15:07]} {[%emt 00:00:21]}
18. c4 {[%clk 00:12:33]} {[%emt 00:00:27]} d4 {[%clk 00:15:08]} {[%emt
00:00:08]} 19. a4 {[%clk 00:11:20]} {[%emt 00:01:22]} Nb4 {[%clk 00:15:09]}
{[%emt 00:00:09]} 20. Bd2 {[%clk 00:11:02]} {[%emt 00:00:28]} Nc2 {[%clk
00:15:03]} {[%emt 00:00:16]} 21. Rf1 {[%clk 00:11:00]} {[%emt 00:00:12]} Nxa4
{[%clk 00:14:15]} {[%emt 00:00:59]} 22. bxa4 {[%clk 00:10:43]} {[%emt
00:00:27]} Qxa4 {[%clk 00:14:23]} {[%emt 00:00:02]} 23. Ne4 {[%clk 00:09:56]}
{[%emt 00:00:56]} b6 {[%clk 00:14:12]} {[%emt 00:00:22]} 24. Bg5 {[%clk
00:08:42]} {[%emt 00:01:23]} Nb4 {[%clk 00:14:16]} {[%emt 00:00:06]} 25. Ra1
{[%clk 00:08:13]} {[%emt 00:00:39]} Qc6 {[%clk 00:13:45]} {[%emt 00:00:42]} 26.
Bd2 {[%clk 00:07:59]} {[%emt 00:00:23]} a5 {[%clk 00:13:32]} {[%emt 00:00:22]}
27. Rfb1 {[%emt 00:00:32]} Nc2 {[%clk 00:13:02]} {[%emt 00:00:38]} 28. Ra2
{[%clk 00:07:41]} {[%emt 00:00:09]} Nb4 {[%clk 00:13:10]} {[%emt 00:00:03]} 29.
Raa1 {[%clk 00:07:33]} {[%emt 00:00:18]} a4 {[%clk 00:13:17]} {[%emt 00:00:03]}
30. Bxb4 {[%clk 00:07:28]} {[%emt 00:00:14]} cxb4 {[%clk 00:13:25]} {[%emt
00:00:03]} 31. Rxb4 {[%clk 00:07:30]} {[%emt 00:00:07]} a3 {[%clk 00:13:33]}
{[%emt 00:00:03]} 32. Rb3 {[%clk 00:07:28]} {[%emt 00:00:11]} a2 {[%clk
00:13:42]} {[%emt 00:00:02]} 33. Rxa2 {[%clk 00:07:26]} {[%emt 00:00:12]} Rxa2
{[%clk 00:13:36]} {[%emt 00:00:16]} 34. Qxa2 {[%clk 00:07:27]} {[%emt
00:00:09]} Ra8 {[%clk 00:13:32]} {[%emt 00:00:13]} 35. Ra3 {[%clk 00:07:30]}
{[%emt 00:00:08]} Rxa3 {[%clk 00:13:29]} {[%emt 00:00:13]} 36. Qxa3 {[%clk
00:07:38]} {[%emt 00:00:02]} Bf8 {[%clk 00:13:37]} {[%emt 00:00:01]} 37. Qb3
{[%clk 00:07:39]} {[%emt 00:00:09]} Kg7 {[%clk 00:13:05]} {[%emt 00:00:44]} 38.
Nxe5 {[%clk 00:07:34]} {[%emt 00:00:14]} Qe6 {[%clk 00:12:37]} {[%emt
00:00:38]} 39. Nf3 {[%clk 00:07:24]} {[%emt 00:00:19]} Bd6 {[%clk 00:11:44]}
{[%emt 00:01:03]} 40. Nxd6 {[%clk 00:06:53]} {[%emt 00:00:41]} Qxd6 {[%clk
00:11:46]} {[%emt 00:00:08]} 41. Qb2 {[%clk 00:06:41]} {[%emt 00:00:23]} Kf6
{[%clk 00:11:06]} {[%emt 00:00:49]} 42. Nxd4 {[%clk 00:06:30]} {[%emt
00:00:20]} Kf7 {[%clk 00:10:34]} {[%emt 00:00:43]} 43. Qc3 {[%clk 00:06:03]}
{[%emt 00:00:37]} Qe5 {[%clk 00:09:52]} {[%emt 00:00:52]} 44. Qb2 {[%clk
00:05:51]} {[%emt 00:00:22]} Qe1+ {[%clk 00:09:42]} {[%emt 00:00:20]} 45. Kh2
{[%clk 00:05:57]} {[%emt 00:00:03]} Qe5 {[%clk 00:09:49]} {[%emt 00:00:04]} 46.
Kg1 {[%clk 00:06:04]} {[%emt 00:00:03]} Qe1+ {[%clk 00:09:58]} {[%emt
00:00:02]} 47. Kh2 {[%clk 00:06:12]} {[%emt 00:00:02]} Qe5 {[%clk 00:10:06]}
{[%emt 00:00:02]} 48. Kh1 {[%clk 00:06:18]} {[%emt 00:00:05]} Qe1 {[%clk
00:10:14]} {[%emt 00:00:01]} 49. Kh2 {[%clk 00:06:27]} {[%emt 00:00:02]} Qe5
{[%clk 00:10:22]} 50. Kg1 {[%clk 00:06:35]} {[%emt 00:00:02]} Qe1+ {[%clk
00:10:31]} {[%emt 00:00:01]} 51. Kh2 {[%clk 00:06:43]} {[%emt 00:00:02]} Qe5
{[%clk 00:10:39]} {[%emt 00:00:02]} 52. Kh1 {[%clk 00:06:50]} {[%emt 00:00:03]}
Qe1 {[%clk 00:10:48]} {[%emt 00:00:02]} 53. Kh2 {[%clk 00:06:59]} {[%emt
00:00:01]} Qe5 {[%clk 00:10:56]} {[%emt 00:00:01]} 54. Kg1 {[%clk 00:07:05]}
{[%emt 00:00:04]} Qe1+ {[%clk 00:11:05]} {[%emt 00:00:02]} 1/2-1/2

[Event "Chessity Nationale Pupillendag 2018 - Groep H"]
[Site "Meppel, Netherlands"]
[Date "2018.06.23"]
[Round "3.2"]
[White "Geldof, Max"]
[Black "Rooijakkers, Liam"]
[Result "1-0"]
[TimeControl "15 min + 10 sec"]
[WhiteElo "642"]
[BlackElo "523"]

1. e4 {[%emt 00:00:09]} c5 {[%clk 00:15:19]} 2. Nc3 {[%clk 00:15:24]} {[%emt
00:00:05]} Nc6 {[%clk 00:15:28]} {[%emt 00:00:01]} 3. Nf3 {[%clk 00:15:32]}
{[%emt 00:00:02]} g6 {[%clk 00:15:36]} {[%emt 00:00:01]} 4. Bc4 {[%clk
00:15:37]} {[%emt 00:00:06]} Bg7 {[%clk 00:15:44]} {[%emt 00:00:02]} 5. d3
{[%clk 00:15:40]} {[%emt 00:00:06]} e6 {[%clk 00:15:52]} {[%emt 00:00:02]} 6.
Bg5 {[%clk 00:15:43]} {[%emt 00:00:07]} Qc7 {[%clk 00:15:53]} {[%emt 00:00:09]}
7. Nb5 {[%clk 00:15:47]} {[%emt 00:00:06]} Qa5+ {[%clk 00:15:58]} {[%emt
00:00:06]} 8. c3 {[%clk 00:15:46]} {[%emt 00:00:10]} h6 {[%clk 00:15:23]}
{[%emt 00:00:46]} 9. Bh4 {[%clk 00:15:52]} {[%emt 00:00:02]} Ne5 {[%clk
00:15:17]} {[%emt 00:00:18]} 10. Nxe5 {[%clk 00:15:58]} {[%emt 00:00:03]} Bxe5
{[%clk 00:15:25]} {[%emt 00:00:02]} 11. d4 {[%clk 00:15:59]} {[%emt 00:00:10]}
cxd4 {[%clk 00:15:26]} {[%emt 00:00:09]} 12. cxd4 {[%clk 00:16:07]} {[%emt
00:00:01]} Bc7+ {[%clk 00:15:32]} {[%emt 00:00:04]} 13. Nxc7+ {[%clk 00:16:14]}
{[%emt 00:00:04]} Qxc7 {[%clk 00:15:40]} {[%emt 00:00:02]} 14. O-O {[%clk
00:16:14]} {[%emt 00:00:09]} Qxc4 {[%clk 00:15:47]} {[%emt 00:00:03]} 15. Qd2
{[%clk 00:16:06]} {[%emt 00:00:16]} Qc6 {[%clk 00:15:50]} {[%emt 00:00:09]} 16.
Qa5 {[%clk 00:16:13]} {[%emt 00:00:04]} b6 {[%clk 00:15:57]} {[%emt 00:00:03]}
17. Qa3 {[%clk 00:16:16]} {[%emt 00:00:05]} Qxe4 {[%clk 00:16:01]} {[%emt
00:00:07]} 18. Qg3 {[%clk 00:16:11]} {[%emt 00:00:15]} Qxd4 {[%clk 00:16:00]}
{[%emt 00:00:12]} 19. Qh3 {[%clk 00:16:07]} {[%emt 00:00:13]} h5 {[%clk
00:16:02]} {[%emt 00:00:09]} 20. Rad1 {[%clk 00:16:14]} {[%emt 00:00:03]} Qxb2
{[%clk 00:16:06]} {[%emt 00:00:06]} 21. a4 {[%clk 00:16:19]} {[%emt 00:00:04]}
Qb4 {[%clk 00:16:05]} {[%emt 00:00:11]} 22. Ra1 {[%clk 00:16:20]} {[%emt
00:00:08]} Ne7 {[%clk 00:16:07]} {[%emt 00:00:09]} 23. Bf6 {[%clk 00:16:26]}
{[%emt 00:00:05]} O-O {[%clk 00:16:07]} {[%emt 00:00:09]} 24. Qe3 {[%clk
00:16:19]} {[%emt 00:00:17]} g5 {[%clk 00:15:38]} {[%emt 00:00:40]} 25. Qxg5+
{[%clk 00:16:24]} {[%emt 00:00:04]} Ng6 {[%clk 00:15:35]} {[%emt 00:00:14]} 26.
Qh6 {[%clk 00:16:28]} {[%emt 00:00:04]} Bb7 {[%clk 00:15:33]} {[%emt 00:00:13]}
27. Qg7+ {[%emt 00:00:04]} 1-0

[Event "Chessity Nationale Pupillendag 2018 - Groep H"]
[Site "Meppel, Netherlands"]
[Date "2018.06.23"]
[Round "4.1"]
[White "Thijsen, Freek"]
[Black "Geldof, Max"]
[Result "1-0"]
[TimeControl "15 min + 10 sec"]
[WhiteElo "610"]
[BlackElo "642"]

1. e4 {[%clk 00:15:18]} {[%emt 00:00:03]} e5 {[%clk 00:15:19]} {[%emt
00:00:01]} 2. Nf3 {[%clk 00:15:26]} {[%emt 00:00:02]} Nc6 {[%clk 00:15:28]}
{[%emt 00:00:01]} 3. Bc4 {[%clk 00:15:34]} {[%emt 00:00:02]} Bc5 {[%clk
00:15:36]} {[%emt 00:00:02]} 4. d3 {[%clk 00:15:40]} {[%emt 00:00:04]} d6
{[%clk 00:15:44]} {[%emt 00:00:02]} 5. Ng5 {[%clk 00:15:43]} {[%emt 00:00:07]}
d5 {[%emt 00:00:14]} 6. Bxd5 {[%emt 00:00:04]} Nh6 {[%clk 00:15:24]} {[%emt
00:00:11]} 7. O-O {[%clk 00:15:41]} {[%emt 00:00:12]} Bg4 {[%clk 00:15:29]}
{[%emt 00:00:06]} 8. Qe1 {[%clk 00:15:37]} {[%emt 00:00:14]} Bd4 {[%clk
00:15:17]} {[%emt 00:00:22]} 9. c3 {[%clk 00:15:37]} {[%emt 00:00:11]} Bb6
{[%clk 00:15:22]} {[%emt 00:00:05]} 10. Bxc6+ {[%clk 00:15:43]} {[%emt
00:00:03]} bxc6 {[%clk 00:15:28]} {[%emt 00:00:04]} 11. Nd2 {[%clk 00:15:43]}
{[%emt 00:00:10]} Qxg5 {[%clk 00:15:29]} {[%emt 00:00:08]} 12. Nc4 {[%clk
00:15:51]} {[%emt 00:00:03]} Qg6 {[%clk 00:15:28]} {[%emt 00:00:10]} 13. h3
{[%clk 00:15:52]} {[%emt 00:00:11]} Bxh3 {[%clk 00:15:34]} {[%emt 00:00:04]} 14.
Ne3 {[%clk 00:15:34]} {[%emt 00:00:28]} Bxe3 {[%clk 00:15:41]} {[%emt
00:00:02]} 15. g3 {[%clk 00:14:29]} {[%emt 00:01:16]} Bxf1 {[%clk 00:15:45]}
{[%emt 00:00:06]} 16. Qxf1 {[%clk 00:14:36]} {[%emt 00:00:04]} Bxc1 {[%clk
00:15:49]} {[%emt 00:00:05]} 17. Rxc1 {[%clk 00:14:44]} {[%emt 00:00:02]} Ng4
{[%clk 00:15:49]} {[%emt 00:00:10]} 18. f3 {[%clk 00:14:29]} {[%emt 00:00:26]}
Ne3 {[%clk 00:15:55]} {[%emt 00:00:04]} 19. Qe1 {[%clk 00:14:30]} {[%emt
00:00:09]} Qxg3+ {[%clk 00:15:59]} {[%emt 00:00:05]} 20. Qxg3 {[%clk 00:14:37]}
{[%emt 00:00:03]} O-O {[%clk 00:15:59]} {[%emt 00:00:10]} 21. Re1 {[%clk
00:14:37]} {[%emt 00:00:11]} Nc2 {[%clk 00:16:05]} {[%emt 00:00:04]} 22. Re2
{[%clk 00:14:30]} {[%emt 00:00:17]} Nd4 {[%clk 00:16:00]} {[%emt 00:00:15]} 23.
cxd4 {[%clk 00:14:37]} {[%emt 00:00:03]} exd4 {[%clk 00:16:07]} {[%emt
00:00:03]} 24. Rg2 {[%clk 00:14:38]} {[%emt 00:00:09]} g6 {[%clk 00:16:10]}
{[%emt 00:00:07]} 25. Qxc7 {[%emt 00:00:10]} Rfc8 {[%emt 00:00:03]} 26. Qe5
{[%clk 00:14:27]} {[%emt 00:00:08]} Rab8 {[%clk 00:16:18]} {[%emt 00:00:03]} 27.
Qxd4 {[%clk 00:14:32]} {[%emt 00:00:04]} c5 {[%clk 00:16:26]} {[%emt 00:00:03]}
28. Qe5 {[%clk 00:14:28]} {[%emt 00:00:13]} Rb5 {[%clk 00:16:30]} {[%emt
00:00:07]} 29. d4 {[%clk 00:14:28]} {[%emt 00:00:10]} a5 {[%clk 00:16:29]}
{[%emt 00:00:10]} 30. dxc5 {[%clk 00:14:32]} {[%emt 00:00:06]} Rcxc5 {[%clk
00:16:37]} {[%emt 00:00:03]} 31. Qe8+ {[%clk 00:14:32]} {[%emt 00:00:10]} Kg7
{[%clk 00:16:43]} {[%emt 00:00:03]} 32. Qe7 {[%clk 00:14:22]} {[%emt 00:00:21]}
Rc1+ {[%clk 00:16:50]} {[%emt 00:00:03]} 33. Kh2 {[%clk 00:14:29]} {[%emt
00:00:03]} Rh5 {[%clk 00:16:56]} {[%emt 00:00:04]} 34. Kg3 {[%clk 00:14:34]}
{[%emt 00:00:05]} Rcc5 {[%clk 00:16:55]} {[%emt 00:00:11]} 35. Rh2 {[%clk
00:14:15]} {[%emt 00:00:30]} Rcg5+ {[%clk 00:17:02]} {[%emt 00:00:03]} 36. Kf2
{[%clk 00:14:15]} {[%emt 00:00:10]} Rxh2+ {[%clk 00:17:09]} {[%emt 00:00:03]}
37. Ke3 {[%clk 00:14:22]} {[%emt 00:00:04]} Rgg2 {[%clk 00:17:11]} {[%emt
00:00:07]} 38. a3 {[%clk 00:14:07]} {[%emt 00:00:20]} Re2+ {[%clk 00:17:18]}
{[%emt 00:00:08]} 39. Kd4 {[%clk 00:14:03]} {[%emt 00:00:07]} Rd2+ {[%clk
00:17:25]} {[%emt 00:00:09]} 40. Ke3 {[%clk 00:14:11]} {[%emt 00:00:02]} Rhe2+
{[%clk 00:17:32]} {[%emt 00:00:03]} 41. Kf4 {[%clk 00:14:09]} {[%emt 00:00:13]}
h6 {[%clk 00:17:34]} {[%emt 00:00:07]} 42. Kg3 {[%clk 00:13:53]} {[%emt
00:00:28]} Rg2+ {[%clk 00:17:39]} {[%emt 00:00:04]} 43. Kf4 {[%clk 00:14:02]}
g5+ {[%clk 00:17:46]} {[%emt 00:00:04]} 44. Kf5 {[%clk 00:14:09]} {[%emt
00:00:04]} Rxb2 {[%clk 00:17:45]} {[%emt 00:00:11]} 45. Qe5+ {[%clk 00:13:57]}
{[%emt 00:00:22]} Kh7 {[%clk 00:17:45]} {[%emt 00:00:06]} 46. Kf6 {[%clk
00:13:52]} {[%emt 00:00:18]} Rb6+ {[%clk 00:17:50]} {[%emt 00:00:05]} 47. Kxf7
{[%clk 00:14:00]} {[%emt 00:00:04]} Rg4 {[%clk 00:17:37]} {[%emt 00:00:19]} 48.
Qg7 {[%clk 00:14:06]} {[%emt 00:00:07]} 1-0